[Event "Titled Tuesday Blitz June 27 Late 2023"]
[White "Fantinel, Thibault"]
[Black "Bryakin, Mikhail"]
[WhiteFideId "663395"]
[BlackFideId "4165314"]
[WhiteElo "2567"]
[BlackElo "2749"]
[Result "1-0"]
[Round "4"]
[TimeControl "180+2"]
[Date "2023.06.27"]
[WhiteClock "0:00:16"]
[BlackClock "0:00:23"]
[Board "50"]

1. c4 {[%clk 0:03:00]}  g6 {[%clk 0:02:43]} 2. g3 {[%clk 0:03:00]}  Bg7 {[%clk 0:02:44]} 3. Bg2 {[%clk 0:03:01]}  c6 {[%clk 0:02:44]} 4. Nc3 {[%clk 0:03:00]}  Nf6 {[%clk 0:02:43]} 5. e4 {[%clk 0:03:00]}  d6 {[%clk 0:02:44]} 6. Nge2 {[%clk 0:03:00]}  O-O {[%clk 0:02:45]} 7. O-O {[%clk 0:03:01]}  e5 {[%clk 0:02:41]} 8. d3 {[%clk 0:03:01]}  a5 {[%clk 0:02:33]} 9. h3 {[%clk 0:03:01]}  Na6 {[%clk 0:02:33]} 10. Be3 {[%clk 0:03:00]}  Nd7 {[%clk 0:02:31]} 11. Qd2 {[%clk 0:03:00]}  Nac5 {[%clk 0:02:30]} 12. Rad1 {[%clk 0:02:58]}  a4 {[%clk 0:02:26]} 13. Bh6 {[%clk 0:02:53]}  Qe7 {[%clk 0:02:24]} 14. Bxg7 {[%clk 0:02:48]}  Kxg7 {[%clk 0:02:25]} 15. d4 {[%clk 0:02:49]}  Ne6 {[%clk 0:02:23]} 16. d5 {[%clk 0:02:46]}  cxd5 {[%clk 0:02:20]} 17. Nxd5 {[%clk 0:02:39]}  Qd8 {[%clk 0:02:20]} 18. f4 {[%clk 0:02:39]}  Nec5 {[%clk 0:02:14]} 19. Kh2 {[%clk 0:02:30]}  Ra6 {[%clk 0:02:08]} 20. Nec3 {[%clk 0:02:25]}  Nb6 {[%clk 0:02:03]} 21. Nxb6 {[%clk 0:02:13]}  Qxb6 {[%clk 0:02:03]} 22. Nd5 {[%clk 0:02:01]}  Qd8 {[%clk 0:01:56]} 23. f5 {[%clk 0:01:48]}  f6 {[%clk 0:01:50]} 24. h4 {[%clk 0:01:49]}  Ra7 {[%clk 0:01:42]} 25. Ne3 {[%clk 0:01:29]}  Ra6 {[%clk 0:01:40]} 26. Ng4 {[%clk 0:01:28]}  g5 {[%clk 0:01:34]} 27. hxg5 {[%clk 0:01:22]}  fxg5 {[%clk 0:01:35]} 28. Nxe5 {[%clk 0:00:43]}  h6 {[%clk 0:01:35]} 29. Ng4 {[%clk 0:00:28]}  Qe8 {[%clk 0:01:31]} 30. Qd4+ {[%clk 0:00:26]}  Kh7 {[%clk 0:01:27]} 31. Nf6+ {[%clk 0:00:25]}  Rxf6 {[%clk 0:01:27]} 32. Qxf6 {[%clk 0:00:26]}  d5 {[%clk 0:01:25]} 33. Qd4 {[%clk 0:00:23]}  Qh5+ {[%clk 0:01:20]} 34. Kg1 {[%clk 0:00:23]}  Nxe4 {[%clk 0:01:18]} 35. Bxe4 {[%clk 0:00:23]}  dxe4 {[%clk 0:01:19]} 36. Qxe4 {[%clk 0:00:22]}  Rf6 {[%clk 0:01:13]} 37. Rd8 {[%clk 0:00:19]}  Qf7 {[%clk 0:00:37]} 38. Rxc8 {[%clk 0:00:18]}  Qd7 {[%clk 0:00:36]} 39. Re8 {[%clk 0:00:17]}  Rf7 {[%clk 0:00:32]} 40. Qe5 {[%clk 0:00:18]}  Rg7 {[%clk 0:00:29]} 41. f6 {[%clk 0:00:18]}  Qg4 {[%clk 0:00:24]} 42. Qf5+ {[%clk 0:00:17]}  Qxf5 {[%clk 0:00:24]} 43. Rxf5 {[%clk 0:00:18]}  Rf7 {[%clk 0:00:22]} 44. Re7 {[%clk 0:00:19]}  Kg6 {[%clk 0:00:23]} 45. Rxf7 {[%clk 0:00:16]}  Kxf5 {[%clk 0:00:23]} 1-0


[Site "https://www.chess.com"]

[Event "Titled Tuesday Blitz June 27 Late 2023"]
[White "Domingo Nunez, Ruben"]
[Black "Troff, Kayden"]
[WhiteFideId "22245570"]
[BlackFideId "2047896"]
[WhiteElo "2554"]
[BlackElo "2736"]
[Result "1-0"]
[Round "4"]
[TimeControl "180+2"]
[Date "2023.06.27"]
[WhiteClock "0:00:34"]
[BlackClock "0:00:11"]
[Board "54"]

1. a3 {[%clk 0:02:55]}  g6 {[%clk 0:02:58]} 2. h3 {[%clk 0:02:55]}  Bg7 {[%clk 0:02:59]} 3. g3 {[%clk 0:02:56]}  d5 {[%clk 0:02:59]} 4. Bg2 {[%clk 0:02:57]}  c5 {[%clk 0:02:59]} 5. d3 {[%clk 0:02:57]}  Nc6 {[%clk 0:02:59]} 6. Nf3 {[%clk 0:02:56]}  e6 {[%clk 0:02:57]} 7. O-O {[%clk 0:02:57]}  Nge7 {[%clk 0:02:57]} 8. e4 {[%clk 0:02:56]}  O-O {[%clk 0:02:56]} 9. Qe2 {[%clk 0:02:56]}  dxe4 {[%clk 0:02:52]} 10. dxe4 {[%clk 0:02:56]}  Nd4 {[%clk 0:02:52]} 11. Nxd4 {[%clk 0:02:56]}  cxd4 {[%clk 0:02:49]} 12. e5 {[%clk 0:02:56]}  Qb6 {[%clk 0:02:40]} 13. Nd2 {[%clk 0:02:54]}  Bd7 {[%clk 0:02:39]} 14. Nc4 {[%clk 0:02:54]}  Qa6 {[%clk 0:02:35]} 15. a4 {[%clk 0:02:42]}  Bc6 {[%clk 0:02:25]} 16. Bg5 {[%clk 0:02:38]}  Bxg2 {[%clk 0:02:23]} 17. Kxg2 {[%clk 0:02:39]}  Nc6 {[%clk 0:02:23]} 18. Rfe1 {[%clk 0:02:11]}  Nb4 {[%clk 0:02:06]} 19. b3 {[%clk 0:01:57]}  Rac8 {[%clk 0:01:54]} 20. Be7 {[%clk 0:01:56]}  Nd5 {[%clk 0:01:43]} 21. Bxf8 {[%clk 0:01:55]}  Bxf8 {[%clk 0:01:44]} 22. Qf3 {[%clk 0:01:45]}  Bb4 {[%clk 0:01:37]} 23. Re4 {[%clk 0:01:44]}  Bc3 {[%clk 0:01:33]} 24. Rd1 {[%clk 0:01:44]}  Qc6 {[%clk 0:01:29]} 25. h4 {[%clk 0:01:37]}  h5 {[%clk 0:01:20]} 26. g4 {[%clk 0:01:25]}  hxg4 {[%clk 0:01:20]} 27. Rxg4 {[%clk 0:01:26]}  Ne7 {[%clk 0:01:19]} 28. h5 {[%clk 0:01:14]}  Qxf3+ {[%clk 0:01:08]} 29. Kxf3 {[%clk 0:01:15]}  Rc5 {[%clk 0:01:07]} 30. Ke4 {[%clk 0:01:06]}  a6 {[%clk 0:00:51]} 31. a5 {[%clk 0:01:03]}  Bxa5 {[%clk 0:00:48]} 32. Rxd4 {[%clk 0:01:00]}  Bc3 {[%clk 0:00:34]} 33. Rd7 {[%clk 0:01:00]}  b5 {[%clk 0:00:20]} 34. Rxe7 {[%clk 0:01:00]}  bxc4 {[%clk 0:00:20]} 35. hxg6 {[%clk 0:01:01]}  Rxe5+ {[%clk 0:00:20]} 36. Kf4 {[%clk 0:00:59]}  Rf5+ {[%clk 0:00:20]} 37. Ke3 {[%clk 0:00:58]}  cxb3 {[%clk 0:00:15]} 38. gxf7+ {[%clk 0:00:56]}  Kf8 {[%clk 0:00:16]} 39. Rc7 {[%clk 0:00:57]}  Bg7 {[%clk 0:00:12]} 40. Rc8+ {[%clk 0:00:42]}  Kxf7 {[%clk 0:00:09]} 41. Rc7+ {[%clk 0:00:42]}  Kf8 {[%clk 0:00:09]} 42. Rcxg7 {[%clk 0:00:40]}  Re5+ {[%clk 0:00:08]} 43. Kd2 {[%clk 0:00:39]}  b2 {[%clk 0:00:06]} 44. Rb7 {[%clk 0:00:35]}  Rf5 {[%clk 0:00:05]} 45. Rg2 {[%clk 0:00:31]}  Rc5 {[%clk 0:00:03]} 46. Rxb2 {[%clk 0:00:28]}  Kf7 {[%clk 0:00:04]} 47. Ra2 {[%clk 0:00:28]}  a5 {[%clk 0:00:02]} 48. Rg3 {[%clk 0:00:28]}  Rf5 {[%clk 0:00:02]} 49. Ke2 {[%clk 0:00:29]}  Ke7 {[%clk 0:00:02]} 50. Rga3 {[%clk 0:00:28]}  Re5+ {[%clk 0:00:03]} 51. Kf1 {[%clk 0:00:29]}  Rh5 {[%clk 0:00:03]} 52. Rxa5 {[%clk 0:00:29]}  Rh1+ {[%clk 0:00:04]} 53. Kg2 {[%clk 0:00:30]}  Rh4 {[%clk 0:00:04]} 54. Re5 {[%clk 0:00:29]}  Rc4 {[%clk 0:00:05]} 55. Re2 {[%clk 0:00:28]}  Rc6 {[%clk 0:00:04]} 56. Ra3 {[%clk 0:00:28]}  Kf6 {[%clk 0:00:05]} 57. Rae3 {[%clk 0:00:28]}  Rd6 {[%clk 0:00:05]} 58. Rxe6+ {[%clk 0:00:29]}  Rxe6 {[%clk 0:00:06]} 59. Rxe6+ {[%clk 0:00:29]}  Kxe6 {[%clk 0:00:06]} 60. Kf3 {[%clk 0:00:30]}  Kf5 {[%clk 0:00:07]} 61. c4 {[%clk 0:00:30]}  Ke5 {[%clk 0:00:08]} 62. Kg4 {[%clk 0:00:31]}  Kd4 {[%clk 0:00:09]} 63. f4 {[%clk 0:00:32]}  Kxc4 {[%clk 0:00:10]} 64. Kg5 {[%clk 0:00:32]}  Kd5 {[%clk 0:00:10]} 65. f5 {[%clk 0:00:32]}  Kd6 {[%clk 0:00:11]} 66. Kg6 {[%clk 0:00:33]}  Ke7 {[%clk 0:00:12]} 67. Kg7 {[%clk 0:00:33]}  Ke8 {[%clk 0:00:11]} 68. f6 {[%clk 0:00:34]} 1-0


[Site "https://www.chess.com"]

[Event "Titled Tuesday Blitz June 27 Late 2023"]
[White "Manukyan, Artyom"]
[Black "Lorparizangeneh, Shahin"]
[WhiteFideId "13305786"]
[BlackFideId "12521604"]
[WhiteElo "2553"]
[BlackElo "2721"]
[Result "1-0"]
[Round "4"]
[TimeControl "180+2"]
[Date "2023.06.27"]
[WhiteClock "0:00:04"]
[BlackClock "0:00:02"]
[Board "57"]

1. e4 {[%clk 0:03:00]}  e5 {[%clk 0:02:59]} 2. Nf3 {[%clk 0:03:01]}  Nc6 {[%clk 0:03:00]} 3. Bb5 {[%clk 0:03:01]}  a6 {[%clk 0:03:00]} 4. Bxc6 {[%clk 0:03:01]}  dxc6 {[%clk 0:03:00]} 5. O-O {[%clk 0:03:02]}  f6 {[%clk 0:03:01]} 6. d4 {[%clk 0:03:02]}  exd4 {[%clk 0:03:01]} 7. Nxd4 {[%clk 0:03:03]}  Bd6 {[%clk 0:03:01]} 8. Nc3 {[%clk 0:02:58]}  Ne7 {[%clk 0:02:54]} 9. Qh5+ {[%clk 0:02:58]}  g6 {[%clk 0:02:43]} 10. Qf3 {[%clk 0:02:57]}  c5 {[%clk 0:02:38]} 11. Nb3 {[%clk 0:02:40]}  O-O {[%clk 0:02:36]} 12. Bh6 {[%clk 0:02:37]}  Rf7 {[%clk 0:02:36]} 13. Rad1 {[%clk 0:02:36]}  b6 {[%clk 0:02:31]} 14. e5 {[%clk 0:02:31]}  fxe5 {[%clk 0:01:35]} 15. Qxa8 {[%clk 0:02:29]}  Nf5 {[%clk 0:01:35]} 16. Bg5 {[%clk 0:02:21]}  Qe8 {[%clk 0:01:35]} 17. Nd5 {[%clk 0:02:17]}  Qe6 {[%clk 0:01:34]} 18. Rfe1 {[%clk 0:02:05]}  Rf8 {[%clk 0:01:34]} 19. Nf6+ {[%clk 0:01:47]}  Kg7 {[%clk 0:01:31]} 20. Ne4 {[%clk 0:01:40]}  h6 {[%clk 0:01:16]} 21. Be3 {[%clk 0:01:31]}  Nh4 {[%clk 0:00:57]} 22. Ng3 {[%clk 0:01:00]}  Qf7 {[%clk 0:00:44]} 23. Qd5 {[%clk 0:00:53]}  Be6 {[%clk 0:00:43]} 24. Qd2 {[%clk 0:00:52]}  g5 {[%clk 0:00:39]} 25. Nc1 {[%clk 0:00:51]}  Bg4 {[%clk 0:00:35]} 26. Qd5 {[%clk 0:00:35]}  Qg6 {[%clk 0:00:29]} 27. Qe4 {[%clk 0:00:29]}  Qe6 {[%clk 0:00:28]} 28. Rd2 {[%clk 0:00:18]}  c4 {[%clk 0:00:25]} 29. c3 {[%clk 0:00:17]}  Nf3+ {[%clk 0:00:25]} 30. Kh1 {[%clk 0:00:11]}  Nxd2 {[%clk 0:00:23]} 31. Bxd2 {[%clk 0:00:11]}  Rxf2 {[%clk 0:00:24]} 32. Be3 {[%clk 0:00:08]}  Rxb2 {[%clk 0:00:23]} 33. Bg1 {[%clk 0:00:08]}  h5 {[%clk 0:00:18]} 34. Nf1 {[%clk 0:00:06]}  h4 {[%clk 0:00:18]} 35. Ne3 {[%clk 0:00:06]}  Bh5 {[%clk 0:00:18]} 36. Nf5+ {[%clk 0:00:06]}  Kg8 {[%clk 0:00:18]} 37. Rf1 {[%clk 0:00:06]}  Bg6 {[%clk 0:00:17]} 38. Qg4 {[%clk 0:00:05]}  Qd5 {[%clk 0:00:13]} 39. Qxg5 {[%clk 0:00:05]}  Qe6 {[%clk 0:00:11]} 40. Nxh4 {[%clk 0:00:04]}  Kh7 {[%clk 0:00:08]} 41. Rf6 {[%clk 0:00:04]}  Rxg2 {[%clk 0:00:04]} 42. Nxg2 {[%clk 0:00:03]}  Qe8 {[%clk 0:00:03]} 43. Qh4+ {[%clk 0:00:02]}  Kg8 {[%clk 0:00:03]} 44. Qg5 {[%clk 0:00:03]}  Kh7 {[%clk 0:00:03]} 45. Nh4 {[%clk 0:00:03]}  Be4+ {[%clk 0:00:01]} 46. Ng2 {[%clk 0:00:03]}  Be7 {[%clk 0:00:01]} 47. Qh6+ {[%clk 0:00:04]}  Kg8 {[%clk 0:00:02]} 48. Qg5+ {[%clk 0:00:04]}  Kh7 {[%clk 0:00:02]} 49. Rh6# {[%clk 0:00:04]} 1-0


[Site "https://www.chess.com"]

[Event "Titled Tuesday Blitz June 27 Late 2023"]
[White "Laurent-Paoli, Pierre"]
[Black "O`Gorman, Tom"]
[WhiteFideId "26017962"]
[BlackFideId "2508249"]
[WhiteElo "2720"]
[BlackElo "2553"]
[Result "1-0"]
[Round "4"]
[TimeControl "180+2"]
[Date "2023.06.27"]
[WhiteClock "0:00:16"]
[BlackClock "0:00:01"]
[Board "58"]

1. d4 {[%clk 0:03:00]}  d5 {[%clk 0:02:59]} 2. c4 {[%clk 0:03:00]}  e6 {[%clk 0:02:59]} 3. Nc3 {[%clk 0:02:59]}  Nf6 {[%clk 0:02:53]} 4. Bg5 {[%clk 0:03:00]}  Be7 {[%clk 0:02:53]} 5. e3 {[%clk 0:03:00]}  O-O {[%clk 0:02:52]} 6. Rc1 {[%clk 0:03:00]}  b6 {[%clk 0:02:48]} 7. cxd5 {[%clk 0:02:59]}  exd5 {[%clk 0:02:47]} 8. Bd3 {[%clk 0:02:58]}  Bb7 {[%clk 0:02:47]} 9. Nge2 {[%clk 0:02:57]}  Ne4 {[%clk 0:02:46]} 10. Bxe7 {[%clk 0:02:52]}  Qxe7 {[%clk 0:02:47]} 11. Bxe4 {[%clk 0:02:52]}  dxe4 {[%clk 0:02:46]} 12. Ng3 {[%clk 0:02:49]}  Nd7 {[%clk 0:02:40]} 13. Qg4 {[%clk 0:02:47]}  Nf6 {[%clk 0:02:35]} 14. Qg5 {[%clk 0:02:43]}  Qe6 {[%clk 0:02:11]} 15. Nb5 {[%clk 0:02:21]}  h6 {[%clk 0:01:58]} 16. Qe5 {[%clk 0:02:11]}  Qxa2 {[%clk 0:01:56]} 17. Nxc7 {[%clk 0:02:08]}  Qxb2 {[%clk 0:01:49]} 18. O-O {[%clk 0:02:07]}  Rac8 {[%clk 0:01:48]} 19. Nf5 {[%clk 0:02:07]}  Kh7 {[%clk 0:01:21]} 20. Nd6 {[%clk 0:01:50]}  Rb8 {[%clk 0:01:15]} 21. Qe7 {[%clk 0:01:37]}  Kg8 {[%clk 0:00:40]} 22. h3 {[%clk 0:01:27]}  Nd5 {[%clk 0:00:37]} 23. Nxd5 {[%clk 0:01:14]}  Bxd5 {[%clk 0:00:38]} 24. Qe5 {[%clk 0:01:12]}  Be6 {[%clk 0:00:34]} 25. Nxe4 {[%clk 0:01:08]}  Rbc8 {[%clk 0:00:30]} 26. Rb1 {[%clk 0:01:04]}  Qa3 {[%clk 0:00:28]} 27. d5 {[%clk 0:01:03]}  Bd7 {[%clk 0:00:24]} 28. Qg3 {[%clk 0:01:01]}  Qe7 {[%clk 0:00:22]} 29. Nd6 {[%clk 0:00:56]}  Rc5 {[%clk 0:00:21]} 30. e4 {[%clk 0:00:56]}  Rd8 {[%clk 0:00:19]} 31. Rfc1 {[%clk 0:00:54]}  Rxc1+ {[%clk 0:00:18]} 32. Rxc1 {[%clk 0:00:54]}  Be8 {[%clk 0:00:17]} 33. Nf5 {[%clk 0:00:54]}  Qf6 {[%clk 0:00:17]} 34. Qc7 {[%clk 0:00:48]}  Bd7 {[%clk 0:00:17]} 35. e5 {[%clk 0:00:40]}  Qg5 {[%clk 0:00:14]} 36. h4 {[%clk 0:00:37]}  Qxf5 {[%clk 0:00:05]} 37. Qxd8+ {[%clk 0:00:37]}  Kh7 {[%clk 0:00:05]} 38. Qe7 {[%clk 0:00:29]}  Bb5 {[%clk 0:00:05]} 39. e6 {[%clk 0:00:26]}  fxe6 {[%clk 0:00:04]} 40. Rc7 {[%clk 0:00:24]}  Qg4 {[%clk 0:00:03]} 41. Qxe6 {[%clk 0:00:15]}  Qd1+ {[%clk 0:00:02]} 42. Kh2 {[%clk 0:00:16]}  Qd4 {[%clk 0:00:02]} 43. Qf5+ {[%clk 0:00:16]}  Kh8 {[%clk 0:00:01]} 44. Rc8+ {[%clk 0:00:16]} 1-0


[Site "https://www.chess.com"]

[Event "Titled Tuesday Blitz June 27 Late 2023"]
[White "Makridis, Dimitrios"]
[Black "Nasir, Zehn"]
[WhiteFideId "25864475"]
[BlackFideId "2613239"]
[WhiteElo "2713"]
[BlackElo "2546"]
[Result "1-0"]
[Round "4"]
[TimeControl "180+2"]
[Date "2023.06.27"]
[WhiteClock "0:00:19"]
[BlackClock "0:00:00"]
[Board "60"]

1. e4 {[%clk 0:03:00]}  c6 {[%clk 0:03:00]} 2. d4 {[%clk 0:02:59]}  d5 {[%clk 0:03:01]} 3. exd5 {[%clk 0:03:00]}  cxd5 {[%clk 0:03:02]} 4. Bd3 {[%clk 0:03:01]}  Nc6 {[%clk 0:03:02]} 5. c3 {[%clk 0:03:01]}  Qc7 {[%clk 0:03:02]} 6. h3 {[%clk 0:03:01]}  Nf6 {[%clk 0:03:00]} 7. Nf3 {[%clk 0:03:00]}  g6 {[%clk 0:02:58]} 8. O-O {[%clk 0:02:59]}  Bg7 {[%clk 0:02:59]} 9. Re1 {[%clk 0:02:59]}  O-O {[%clk 0:03:00]} 10. Bg5 {[%clk 0:02:57]}  Bf5 {[%clk 0:02:59]} 11. Bxf5 {[%clk 0:02:57]}  gxf5 {[%clk 0:03:00]} 12. Nbd2 {[%clk 0:02:57]}  e6 {[%clk 0:03:00]} 13. Re2 {[%clk 0:02:57]}  Rab8 {[%clk 0:02:58]} 14. Bh4 {[%clk 0:02:56]}  Ne4 {[%clk 0:02:54]} 15. Ne1 {[%clk 0:02:54]}  Qf4 {[%clk 0:02:45]} 16. Ndf3 {[%clk 0:02:35]}  b5 {[%clk 0:02:32]} 17. Nd3 {[%clk 0:02:35]}  Qh6 {[%clk 0:02:29]} 18. a3 {[%clk 0:02:34]}  a5 {[%clk 0:02:29]} 19. Bg3 {[%clk 0:02:19]}  Nxg3 {[%clk 0:02:27]} 20. fxg3 {[%clk 0:02:20]}  b4 {[%clk 0:02:24]} 21. axb4 {[%clk 0:02:21]}  axb4 {[%clk 0:02:23]} 22. Kh2 {[%clk 0:02:19]}  bxc3 {[%clk 0:02:21]} 23. bxc3 {[%clk 0:02:19]}  Rfc8 {[%clk 0:02:21]} 24. Qe1 {[%clk 0:01:58]}  Ne7 {[%clk 0:01:52]} 25. Nc5 {[%clk 0:01:46]}  f4 {[%clk 0:01:46]} 26. g4 {[%clk 0:01:46]}  Ng6 {[%clk 0:00:54]} 27. Ra7 {[%clk 0:01:42]}  Nf8 {[%clk 0:00:53]} 28. Ne5 {[%clk 0:00:39]}  Bxe5 {[%clk 0:00:50]} 29. Rxe5 {[%clk 0:00:40]}  f3 {[%clk 0:00:46]} 30. gxf3 {[%clk 0:00:39]}  Qf4+ {[%clk 0:00:44]} 31. Kg2 {[%clk 0:00:36]}  Ng6 {[%clk 0:00:36]} 32. Re2 {[%clk 0:00:36]}  Qg5 {[%clk 0:00:19]} 33. Kh2 {[%clk 0:00:29]}  Nf4 {[%clk 0:00:18]} 34. Rea2 {[%clk 0:00:25]}  Qh6 {[%clk 0:00:18]} 35. Qg3 {[%clk 0:00:19]}  Rb1 {[%clk 0:00:16]} 36. g5 {[%clk 0:00:19]}  Qg6 {[%clk 0:00:08]} 37. Qxf4 {[%clk 0:00:19]}  Rcb8 {[%clk 0:00:08]} 38. Ra8 {[%clk 0:00:19]}  Rb2+ {[%clk 0:00:04]} 39. Rxb2 {[%clk 0:00:19]}  Rxa8 {[%clk 0:00:05]} 40. Nd7 {[%clk 0:00:20]}  Ra1 {[%clk 0:00:03]} 41. Rb8+ {[%clk 0:00:19]}  Kg7 {[%clk 0:00:03]} 42. Rg8+ {[%clk 0:00:18]}  Kxg8 {[%clk 0:00:00]} 43. Qb8+ {[%clk 0:00:19]} 1-0


[Site "https://www.chess.com"]

[Event "Titled Tuesday Blitz June 27 Late 2023"]
[White "Goltsev, Dmitry"]
[Black "Perez, Maximiliano"]
[WhiteFideId "24176710"]
[BlackFideId "117234"]
[WhiteElo "2704"]
[BlackElo "2542"]
[Result "1-0"]
[Round "4"]
[TimeControl "180+2"]
[Date "2023.06.27"]
[WhiteClock "0:02:00"]
[BlackClock "0:00:31"]
[Board "62"]

1. e4 {[%clk 0:03:00]}  e5 {[%clk 0:02:59]} 2. Nf3 {[%clk 0:03:00]}  Nf6 {[%clk 0:02:59]} 3. Nxe5 {[%clk 0:03:00]}  d6 {[%clk 0:02:59]} 4. Nf3 {[%clk 0:03:00]}  Nxe4 {[%clk 0:03:00]} 5. d3 {[%clk 0:03:00]}  Nf6 {[%clk 0:03:00]} 6. d4 {[%clk 0:03:01]}  Be7 {[%clk 0:02:57]} 7. Bd3 {[%clk 0:03:01]}  O-O {[%clk 0:02:58]} 8. O-O {[%clk 0:03:00]}  Bg4 {[%clk 0:02:56]} 9. Bg5 {[%clk 0:03:00]}  Nc6 {[%clk 0:02:52]} 10. c3 {[%clk 0:03:00]}  Re8 {[%clk 0:02:46]} 11. Nbd2 {[%clk 0:03:00]}  h6 {[%clk 0:02:46]} 12. Bh4 {[%clk 0:03:00]}  d5 {[%clk 0:02:46]} 13. h3 {[%clk 0:02:59]}  Bxf3 {[%clk 0:02:47]} 14. Nxf3 {[%clk 0:02:59]}  Ne4 {[%clk 0:02:46]} 15. Bxe7 {[%clk 0:02:58]}  Qxe7 {[%clk 0:02:47]} 16. Re1 {[%clk 0:02:58]}  Qd6 {[%clk 0:02:35]} 17. Bxe4 {[%clk 0:02:55]}  dxe4 {[%clk 0:02:35]} 18. Nd2 {[%clk 0:02:56]}  f5 {[%clk 0:02:35]} 19. Qb3+ {[%clk 0:02:56]}  Kh7 {[%clk 0:02:34]} 20. Qxb7 {[%clk 0:02:56]}  Rab8 {[%clk 0:02:19]} 21. Qa6 {[%clk 0:02:56]}  Qg6 {[%clk 0:01:58]} 22. Nc4 {[%clk 0:02:47]}  f4 {[%clk 0:01:56]} 23. d5 {[%clk 0:02:47]}  f3 {[%clk 0:01:55]} 24. g3 {[%clk 0:02:46]}  Qf5 {[%clk 0:01:14]} 25. Ne3 {[%clk 0:02:39]}  Qxh3 {[%clk 0:01:13]} 26. dxc6 {[%clk 0:02:35]}  Rxb2 {[%clk 0:01:13]} 27. Qf1 {[%clk 0:02:30]}  Qh5 {[%clk 0:01:13]} 28. Rad1 {[%clk 0:02:29]}  Re6 {[%clk 0:01:02]} 29. Rd5 {[%clk 0:02:26]}  Qe8 {[%clk 0:00:59]} 30. Qc4 {[%clk 0:02:10]}  Rxc6 {[%clk 0:00:57]} 31. Rc5 {[%clk 0:02:11]}  Rg6 {[%clk 0:00:51]} 32. Nf5 {[%clk 0:02:05]}  Rg5 {[%clk 0:00:37]} 33. Qxe4 {[%clk 0:02:04]}  Qxe4 {[%clk 0:00:35]} 34. Rxe4 {[%clk 0:02:05]}  Rb1+ {[%clk 0:00:36]} 35. Kh2 {[%clk 0:02:05]}  Rh5+ {[%clk 0:00:37]} 36. Rh4 {[%clk 0:02:04]}  Rxh4+ {[%clk 0:00:33]} 37. gxh4 {[%clk 0:02:00]}  Rb2 {[%clk 0:00:31]} 38. Kg3 {[%clk 0:02:00]} 1-0


[Site "https://www.chess.com"]

[Event "Titled Tuesday Blitz June 27 Late 2023"]
[White "Leenhouts, Koen"]
[Black "Fisher_TheGalactic"]
[WhiteFideId "1008439"]
[WhiteElo "2537"]
[BlackElo "2693"]
[Result "0-1"]
[Round "4"]
[TimeControl "180+2"]
[Date "2023.06.27"]
[WhiteClock "0:00:00"]
[BlackClock "0:00:07"]
[Board "66"]

1. d4 {[%clk 0:03:00]}  a5 {[%clk 0:02:59]} 2. e4 {[%clk 0:02:59]}  a4 {[%clk 0:02:59]} 3. Nf3 {[%clk 0:02:57]}  e6 {[%clk 0:02:58]} 4. Bd3 {[%clk 0:02:55]}  d5 {[%clk 0:02:58]} 5. O-O {[%clk 0:02:39]}  dxe4 {[%clk 0:02:50]} 6. Bxe4 {[%clk 0:02:40]}  Nf6 {[%clk 0:02:50]} 7. Bd3 {[%clk 0:02:39]}  c6 {[%clk 0:02:47]} 8. a3 {[%clk 0:02:36]}  Nbd7 {[%clk 0:02:47]} 9. Re1 {[%clk 0:02:32]}  Qc7 {[%clk 0:02:46]} 10. Bg5 {[%clk 0:02:29]}  Be7 {[%clk 0:02:44]} 11. Nbd2 {[%clk 0:02:28]}  h6 {[%clk 0:02:42]} 12. Bh4 {[%clk 0:02:28]}  O-O {[%clk 0:02:38]} 13. Qe2 {[%clk 0:02:26]}  Re8 {[%clk 0:02:36]} 14. Bg3 {[%clk 0:02:25]}  Bd6 {[%clk 0:02:36]} 15. Ne5 {[%clk 0:02:21]}  b5 {[%clk 0:02:30]} 16. Rad1 {[%clk 0:02:11]}  Bb7 {[%clk 0:02:30]} 17. c3 {[%clk 0:02:09]}  Rad8 {[%clk 0:02:29]} 18. Ndf3 {[%clk 0:02:04]}  Nh5 {[%clk 0:02:24]} 19. Bb1 {[%clk 0:01:34]}  Nxg3 {[%clk 0:02:22]} 20. hxg3 {[%clk 0:01:35]}  Nxe5 {[%clk 0:02:21]} 21. dxe5 {[%clk 0:01:32]}  Bf8 {[%clk 0:02:21]} 22. Qe4 {[%clk 0:01:29]}  g6 {[%clk 0:02:21]} 23. Qg4 {[%clk 0:01:30]}  Bg7 {[%clk 0:02:00]} 24. Be4 {[%clk 0:01:04]}  Rxd1 {[%clk 0:01:53]} 25. Rxd1 {[%clk 0:01:05]}  Rd8 {[%clk 0:01:54]} 26. Rxd8+ {[%clk 0:00:52]}  Qxd8 {[%clk 0:01:55]} 27. Bxg6 {[%clk 0:00:53]}  fxg6 {[%clk 0:01:53]} 28. Qxe6+ {[%clk 0:00:53]}  Kh7 {[%clk 0:01:52]} 29. Nh4 {[%clk 0:00:32]}  Qd3 {[%clk 0:01:15]} 30. Qf7 {[%clk 0:00:21]}  Bc8 {[%clk 0:01:11]} 31. e6 {[%clk 0:00:22]}  Qe4 {[%clk 0:00:57]} 32. e7 {[%clk 0:00:19]}  Bd7 {[%clk 0:00:54]} 33. f3 {[%clk 0:00:18]}  Qd5 {[%clk 0:00:10]} 34. Qxg6+ {[%clk 0:00:17]}  Kg8 {[%clk 0:00:09]} 35. e8=Q+ {[%clk 0:00:17]}  Bxe8 {[%clk 0:00:10]} 36. Qxe8+ {[%clk 0:00:17]}  Kh7 {[%clk 0:00:10]} 37. Qe4+ {[%clk 0:00:15]}  Qxe4 {[%clk 0:00:10]} 38. fxe4 {[%clk 0:00:16]}  Be5 {[%clk 0:00:10]} 39. Nf5 {[%clk 0:00:16]}  b4 {[%clk 0:00:08]} 40. Ne7 {[%clk 0:00:06]}  bxc3 {[%clk 0:00:08]} 41. bxc3 {[%clk 0:00:07]}  c5 {[%clk 0:00:07]} 42. c4 {[%clk 0:00:07]}  Bxg3 {[%clk 0:00:06]} 43. Nd5 {[%clk 0:00:07]}  Be5 {[%clk 0:00:06]} 44. Nb6 {[%clk 0:00:07]}  Bb2 {[%clk 0:00:06]} 45. Nxa4 {[%clk 0:00:07]}  Bxa3 {[%clk 0:00:06]} 46. Kf2 {[%clk 0:00:08]}  Kg6 {[%clk 0:00:05]} 47. Kf3 {[%clk 0:00:09]}  Kf6 {[%clk 0:00:06]} 48. Nb6 {[%clk 0:00:09]}  Ke5 {[%clk 0:00:05]} 49. Nd5 {[%clk 0:00:09]}  Kd4 {[%clk 0:00:04]} 50. Ne3 {[%clk 0:00:09]}  Bc1 {[%clk 0:00:04]} 51. Nf5+ {[%clk 0:00:06]}  Kxc4 {[%clk 0:00:05]} 52. Ke2 {[%clk 0:00:06]}  Bg5 {[%clk 0:00:04]} 53. g4 {[%clk 0:00:05]}  Kb3 {[%clk 0:00:04]} 54. Kd3 {[%clk 0:00:05]}  c4+ {[%clk 0:00:05]} 55. Kd4 {[%clk 0:00:03]}  c3 {[%clk 0:00:06]} 56. Kd5 {[%clk 0:00:02]}  c2 {[%clk 0:00:06]} 57. Nd4+ {[%clk 0:00:03]}  Kb2 {[%clk 0:00:06]} 58. Nxc2 {[%clk 0:00:03]}  Kxc2 {[%clk 0:00:06]} 59. e5 {[%clk 0:00:02]}  Kd3 {[%clk 0:00:07]} 60. Ke6 {[%clk 0:00:03]}  Ke4 {[%clk 0:00:07]} 61. Kd6 {[%clk 0:00:00]}  Kf4 {[%clk 0:00:07]} 0-1


[Site "https://www.chess.com"]